[Event "Titled Tuesday Blitz June 15 2021"]
[White "Kim, Sergey"]
[Black "Real De Azua, Ernesto"]
[WhiteFideId "13700570"]
[BlackFideId "108154"]
[WhiteElo "2493"]
[BlackElo "2476"]
[Result "1/2-1/2"]
[Round "08"]
[TimeControl "180+1"]
[Date "2021.06.15"]
[WhiteClock "0:00:11"]
[BlackClock "0:00:08"]

1. d4 {[%clk 0:03:00]}  f5 {[%clk 0:02:55]} 2. c4 {[%clk 0:03:00]}  Nf6 {[%clk 0:02:55]} 3. g3 {[%clk 0:03:00]}  g6 {[%clk 0:02:52]} 4. Bg2 {[%clk 0:03:00]}  Bg7 {[%clk 0:02:53]} 5. Nf3 {[%clk 0:03:01]}  O-O {[%clk 0:02:53]} 6. O-O {[%clk 0:03:00]}  d6 {[%clk 0:02:53]} 7. Nc3 {[%clk 0:03:00]}  c6 {[%clk 0:02:54]} 8. Re1 {[%clk 0:02:58]}  Ne4 {[%clk 0:02:33]} 9. Qd3 {[%clk 0:02:52]}  Be6 {[%clk 0:02:17]} 10. d5 {[%clk 0:02:44]}  Nc5 {[%clk 0:01:55]} 11. Qc2 {[%clk 0:02:35]}  cxd5 {[%clk 0:01:47]} 12. cxd5 {[%clk 0:02:34]}  Bf7 {[%clk 0:01:47]} 13. Ng5 {[%clk 0:02:31]}  Nbd7 {[%clk 0:01:27]} 14. Nxf7 {[%clk 0:02:18]}  Rxf7 {[%clk 0:01:27]} 15. Be3 {[%clk 0:02:17]}  Rc8 {[%clk 0:01:25]} 16. Rac1 {[%clk 0:02:12]}  Ne5 {[%clk 0:01:16]} 17. Qd1 {[%clk 0:02:06]}  a5 {[%clk 0:01:12]} 18. Bd4 {[%clk 0:02:01]}  Rf8 {[%clk 0:01:07]} 19. b3 {[%clk 0:01:50]}  Ned7 {[%clk 0:01:03]} 20. Nb5 {[%clk 0:01:44]}  Bxd4 {[%clk 0:01:00]} 21. Nxd4 {[%clk 0:01:44]}  Qb6 {[%clk 0:01:01]} 22. Qd2 {[%clk 0:01:36]}  Qb4 {[%clk 0:00:59]} 23. Qf4 {[%clk 0:01:29]}  Ne5 {[%clk 0:00:49]} 24. Qh4 {[%clk 0:01:09]}  Rc7 {[%clk 0:00:39]} 25. a3 {[%clk 0:00:50]}  Qb6 {[%clk 0:00:31]} 26. Red1 {[%clk 0:00:43]}  Rfc8 {[%clk 0:00:30]} 27. Rc3 {[%clk 0:00:38]}  Ng4 {[%clk 0:00:19]} 28. h3 {[%clk 0:00:35]}  Nf6 {[%clk 0:00:11]} 29. Re3 {[%clk 0:00:31]}  Nce4 {[%clk 0:00:08]} 30. Bxe4 {[%clk 0:00:28]}  Nxe4 {[%clk 0:00:09]} 31. Ne6 {[%clk 0:00:27]}  Rd7 {[%clk 0:00:09]} 32. Kg2 {[%clk 0:00:26]}  Rc3 {[%clk 0:00:06]} 33. Rdd3 {[%clk 0:00:25]}  Rxd3 {[%clk 0:00:06]} 34. exd3 {[%clk 0:00:25]}  Nf6 {[%clk 0:00:06]} 35. Ng5 {[%clk 0:00:23]}  Qxb3 {[%clk 0:00:05]} 36. Qd4 {[%clk 0:00:20]}  Qxd5+ {[%clk 0:00:04]} 37. Qxd5+ {[%clk 0:00:20]}  Nxd5 {[%clk 0:00:05]} 38. Re1 {[%clk 0:00:20]}  b5 {[%clk 0:00:05]} 39. Rc1 {[%clk 0:00:19]}  Rc7 {[%clk 0:00:04]} 40. Rb1 {[%clk 0:00:18]}  b4 {[%clk 0:00:04]} 41. axb4 {[%clk 0:00:18]}  axb4 {[%clk 0:00:05]} 42. Ne6 {[%clk 0:00:18]}  Rc3 {[%clk 0:00:03]} 43. d4 {[%clk 0:00:17]}  Kf7 {[%clk 0:00:03]} 44. Ng5+ {[%clk 0:00:16]}  Kg7 {[%clk 0:00:03]} 45. Nf3 {[%clk 0:00:17]}  b3 {[%clk 0:00:03]} 46. Nd2 {[%clk 0:00:17]}  Rd3 {[%clk 0:00:03]} 47. Nxb3 {[%clk 0:00:16]}  e5 {[%clk 0:00:02]} 48. dxe5 {[%clk 0:00:15]}  dxe5 {[%clk 0:00:03]} 49. Nc5 {[%clk 0:00:15]}  Rd2 {[%clk 0:00:03]} 50. Rb7+ {[%clk 0:00:15]}  Kh6 {[%clk 0:00:03]} 51. Ne6 {[%clk 0:00:15]}  e4 {[%clk 0:00:02]} 52. Kf1 {[%clk 0:00:13]}  Nf6 {[%clk 0:00:01]} 53. Nf4 {[%clk 0:00:12]}  Rd6 {[%clk 0:00:02]} 54. h4 {[%clk 0:00:12]}  g5 {[%clk 0:00:02]} 55. hxg5+ {[%clk 0:00:11]}  Kxg5 {[%clk 0:00:03]} 56. Rg7+ {[%clk 0:00:11]}  Kh6 {[%clk 0:00:04]} 57. Rf7 {[%clk 0:00:11]}  Nd5 {[%clk 0:00:04]} 58. Rxf5 {[%clk 0:00:10]}  Nxf4 {[%clk 0:00:04]} 59. Rxf4 {[%clk 0:00:10]}  Re6 {[%clk 0:00:04]} 60. Kg2 {[%clk 0:00:10]}  e3 {[%clk 0:00:04]} 61. fxe3 {[%clk 0:00:10]}  Rxe3 {[%clk 0:00:05]} 62. Kh3 {[%clk 0:00:10]}  Kg7 {[%clk 0:00:05]} 63. Kg4 {[%clk 0:00:10]}  Re6 {[%clk 0:00:05]} 64. Kh4 {[%clk 0:00:10]}  Rg6 {[%clk 0:00:06]} 65. Rg4 {[%clk 0:00:10]}  Rxg4+ {[%clk 0:00:06]} 66. Kxg4 {[%clk 0:00:10]}  Kg6 {[%clk 0:00:07]} 67. Kh4 {[%clk 0:00:11]}  h5 {[%clk 0:00:07]} 68. g4 {[%clk 0:00:11]}  hxg4 {[%clk 0:00:08]} 69. Kxg4 {[%clk 0:00:11]} 1/2-1/2


[Site "https://www.chess.com"]

[Event "Titled Tuesday Blitz June 15 2021"]
[White "Kollars, Dmitrij"]
[Black "Eljanov, Pavel"]
[WhiteFideId "12909572"]
[BlackFideId "14102951"]
[WhiteElo "2576"]
[BlackElo "2602"]
[Result "0-1"]
[Round "08"]
[TimeControl "180+1"]
[Date "2021.06.15"]
[WhiteClock "0:00:02"]
[BlackClock "0:00:24"]

1. c4 {[%clk 0:03:00]}  Nf6 {[%clk 0:02:58]} 2. Nc3 {[%clk 0:03:00]}  e5 {[%clk 0:02:58]} 3. Nf3 {[%clk 0:02:59]}  Nc6 {[%clk 0:02:58]} 4. e3 {[%clk 0:03:00]}  Bb4 {[%clk 0:02:57]} 5. Qc2 {[%clk 0:03:00]}  O-O {[%clk 0:02:55]} 6. Nd5 {[%clk 0:02:55]}  a5 {[%clk 0:02:49]} 7. Qf5 {[%clk 0:02:34]}  Nxd5 {[%clk 0:02:38]} 8. cxd5 {[%clk 0:02:35]}  d6 {[%clk 0:02:38]} 9. Qh5 {[%clk 0:02:27]}  Ne7 {[%clk 0:02:37]} 10. Bc4 {[%clk 0:02:22]}  b5 {[%clk 0:02:12]} 11. Bxb5 {[%clk 0:02:21]}  Nxd5 {[%clk 0:02:11]} 12. O-O {[%clk 0:02:07]}  Bb7 {[%clk 0:02:11]} 13. a3 {[%clk 0:02:02]}  Bc5 {[%clk 0:02:11]} 14. d4 {[%clk 0:02:01]}  Nf6 {[%clk 0:01:57]} 15. Qh4 {[%clk 0:02:00]}  Bxf3 {[%clk 0:01:51]} 16. dxc5 {[%clk 0:01:58]}  Bd5 {[%clk 0:01:28]} 17. cxd6 {[%clk 0:01:55]}  cxd6 {[%clk 0:01:28]} 18. Rd1 {[%clk 0:01:37]}  Bb3 {[%clk 0:01:18]} 19. Re1 {[%clk 0:01:37]}  Qb6 {[%clk 0:01:12]} 20. a4 {[%clk 0:01:28]}  Rac8 {[%clk 0:01:12]} 21. Ra3 {[%clk 0:01:22]}  Be6 {[%clk 0:00:59]} 22. e4 {[%clk 0:01:18]}  Rc2 {[%clk 0:00:55]} 23. Bd3 {[%clk 0:00:37]}  Qb4 {[%clk 0:00:51]} 24. Rf1 {[%clk 0:00:17]}  Rc7 {[%clk 0:00:51]} 25. f3 {[%clk 0:00:11]}  Rfc8 {[%clk 0:00:40]} 26. Bg5 {[%clk 0:00:11]}  Qxb2 {[%clk 0:00:39]} 27. Raa1 {[%clk 0:00:11]}  Qd4+ {[%clk 0:00:39]} 28. Kh1 {[%clk 0:00:10]}  Qxd3 {[%clk 0:00:39]} 29. Bxf6 {[%clk 0:00:10]}  gxf6 {[%clk 0:00:40]} 30. Qxf6 {[%clk 0:00:11]}  Qe3 {[%clk 0:00:39]} 31. f4 {[%clk 0:00:10]}  exf4 {[%clk 0:00:32]} 32. Qg5+ {[%clk 0:00:07]}  Kf8 {[%clk 0:00:32]} 33. Rae1 {[%clk 0:00:05]}  Qc3 {[%clk 0:00:30]} 34. Qxf4 {[%clk 0:00:02]}  Qe5 {[%clk 0:00:27]} 35. Qh6+ {[%clk 0:00:03]}  Ke7 {[%clk 0:00:28]} 36. Qh4+ {[%clk 0:00:03]}  Kd7 {[%clk 0:00:27]} 37. h3 {[%clk 0:00:03]}  h5 {[%clk 0:00:25]} 38. Qf2 {[%clk 0:00:03]}  Rc2 {[%clk 0:00:23]} 39. Qa7+ {[%clk 0:00:02]}  R8c7 {[%clk 0:00:24]} 40. Qb6 {[%clk 0:00:02]}  Qg3 {[%clk 0:00:24]} 0-1


[Site "https://www.chess.com"]

[Event "Titled Tuesday Blitz June 15 2021"]
[White "Macovei, Andrei"]
[Black "Jumabayev, Rinat"]
[WhiteFideId "13904680"]
[BlackFideId "13702661"]
[WhiteElo "2439"]
[BlackElo "2535"]
[Result "0-1"]
[Round "08"]
[TimeControl "180+1"]
[Date "2021.06.15"]
[WhiteClock "0:00:04"]
[BlackClock "0:00:14"]

1. e4 {[%clk 0:01:22]}  d6 {[%clk 0:02:00]} 2. d4 {[%clk 0:01:18]}  g6 {[%clk 0:02:00]} 3. c3 {[%clk 0:01:18]}  Bg7 {[%clk 0:01:59]} 4. Nf3 {[%clk 0:01:19]}  Nc6 {[%clk 0:01:59]} 5. Bd3 {[%clk 0:01:20]}  e5 {[%clk 0:01:59]} 6. Be3 {[%clk 0:01:18]}  Nf6 {[%clk 0:01:58]} 7. O-O {[%clk 0:01:17]}  O-O {[%clk 0:01:56]} 8. d5 {[%clk 0:01:14]}  Ne7 {[%clk 0:01:55]} 9. c4 {[%clk 0:01:14]}  Nd7 {[%clk 0:01:55]} 10. Nc3 {[%clk 0:01:15]}  f5 {[%clk 0:01:55]} 11. Ng5 {[%clk 0:01:07]}  Nf6 {[%clk 0:01:55]} 12. f3 {[%clk 0:01:01]}  Kh8 {[%clk 0:01:41]} 13. c5 {[%clk 0:00:26]}  c6 {[%clk 0:01:13]} 14. cxd6 {[%clk 0:00:22]}  Qxd6 {[%clk 0:01:12]} 15. dxc6 {[%clk 0:00:22]}  Nxc6 {[%clk 0:01:12]} 16. exf5 {[%clk 0:00:20]}  gxf5 {[%clk 0:01:10]} 17. Bc4 {[%clk 0:00:19]}  Qe7 {[%clk 0:01:06]} 18. Kh1 {[%clk 0:00:13]}  h6 {[%clk 0:01:06]} 19. Nh3 {[%clk 0:00:13]}  f4 {[%clk 0:01:02]} 20. Bg1 {[%clk 0:00:13]}  Bxh3 {[%clk 0:01:02]} 21. gxh3 {[%clk 0:00:14]}  Rad8 {[%clk 0:01:02]} 22. Qe1 {[%clk 0:00:14]}  Nd4 {[%clk 0:00:49]} 23. Rd1 {[%clk 0:00:13]}  Qc7 {[%clk 0:00:41]} 24. Bd3 {[%clk 0:00:13]}  Qc6 {[%clk 0:00:37]} 25. Ne4 {[%clk 0:00:13]}  Nd5 {[%clk 0:00:37]} 26. Rc1 {[%clk 0:00:13]}  Qb6 {[%clk 0:00:37]} 27. Qd2 {[%clk 0:00:12]}  a6 {[%clk 0:00:31]} 28. Bc4 {[%clk 0:00:09]}  Ne7 {[%clk 0:00:31]} 29. Qg2 {[%clk 0:00:09]}  Nef5 {[%clk 0:00:30]} 30. Qg4 {[%clk 0:00:07]}  Ne3 {[%clk 0:00:30]} 31. Bxe3 {[%clk 0:00:07]}  fxe3 {[%clk 0:00:31]} 32. Rg1 {[%clk 0:00:08]}  Qc7 {[%clk 0:00:23]} 33. Bb3 {[%clk 0:00:05]}  Qe7 {[%clk 0:00:23]} 34. Rgf1 {[%clk 0:00:02]}  e2 {[%clk 0:00:21]} 35. Rf2 {[%clk 0:00:03]}  Rf4 {[%clk 0:00:16]} 36. Qg3 {[%clk 0:00:03]}  Rdf8 {[%clk 0:00:16]} 37. Re1 {[%clk 0:00:03]}  Rxf3 {[%clk 0:00:16]} 38. Rxf3 {[%clk 0:00:03]}  Rxf3 {[%clk 0:00:16]} 39. Qg2 {[%clk 0:00:04]}  Qf8 {[%clk 0:00:14]} 40. Ng3 {[%clk 0:00:04]}  Rf2 {[%clk 0:00:15]} 41. Qg1 {[%clk 0:00:04]}  Qf3+ {[%clk 0:00:14]} 0-1


[Site "https://www.chess.com"]

[Event "Titled Tuesday Blitz June 15 2021"]
[White "Maltsevskaya, Aleksandra"]
[Black "Andrews, Todd"]
[WhiteFideId "24174041"]
[BlackFideId "2012456"]
[WhiteElo "2225"]
[BlackElo "2433"]
[Result "1-0"]
[Round "08"]
[TimeControl "180+1"]
[Date "2021.06.15"]
[WhiteClock "0:01:54"]
[BlackClock "0:00:57"]

1. e4 {[%clk 0:02:41]}  e6 {[%clk 0:02:59]} 2. d4 {[%clk 0:02:36]}  d5 {[%clk 0:03:00]} 3. Nc3 {[%clk 0:02:31]}  Bb4 {[%clk 0:03:00]} 4. e5 {[%clk 0:02:30]}  c5 {[%clk 0:02:59]} 5. Bd2 {[%clk 0:02:31]}  Ne7 {[%clk 0:02:59]} 6. Nb5 {[%clk 0:02:31]}  Bxd2+ {[%clk 0:02:59]} 7. Qxd2 {[%clk 0:02:31]}  O-O {[%clk 0:02:59]} 8. f4 {[%clk 0:02:32]}  cxd4 {[%clk 0:02:55]} 9. Nf3 {[%clk 0:02:32]}  Nbc6 {[%clk 0:02:54]} 10. Nbxd4 {[%clk 0:02:31]}  f6 {[%clk 0:02:49]} 11. Bd3 {[%clk 0:02:25]}  Nxd4 {[%clk 0:02:47]} 12. Nxd4 {[%clk 0:02:25]}  fxe5 {[%clk 0:02:47]} 13. fxe5 {[%clk 0:02:26]}  Nc6 {[%clk 0:02:26]} 14. Nf3 {[%clk 0:02:24]}  Rxf3 {[%clk 0:02:17]} 15. gxf3 {[%clk 0:02:23]}  Nxe5 {[%clk 0:02:16]} 16. O-O-O {[%clk 0:02:23]}  Qf6 {[%clk 0:02:08]} 17. f4 {[%clk 0:02:15]}  Nc6 {[%clk 0:02:04]} 18. Rhg1 {[%clk 0:02:05]}  Bd7 {[%clk 0:01:56]} 19. h4 {[%clk 0:02:05]}  a5 {[%clk 0:01:54]} 20. h5 {[%clk 0:02:05]}  Nb4 {[%clk 0:01:54]} 21. a3 {[%clk 0:02:03]}  Nxd3+ {[%clk 0:01:43]} 22. Qxd3 {[%clk 0:02:03]}  Qxf4+ {[%clk 0:01:43]} 23. Kb1 {[%clk 0:02:03]}  Rc8 {[%clk 0:01:38]} 24. Rdf1 {[%clk 0:02:00]}  Qc4 {[%clk 0:01:36]} 25. Qd2 {[%clk 0:01:59]}  b5 {[%clk 0:01:06]} 26. Rxg7+ {[%clk 0:01:53]}  Kxg7 {[%clk 0:01:01]} 27. Qg5+ {[%clk 0:01:53]}  Kh8 {[%clk 0:01:00]} 28. Qf6+ {[%clk 0:01:53]}  Kg8 {[%clk 0:01:00]} 29. Rg1+ {[%clk 0:01:53]}  Qg4 {[%clk 0:00:57]} 30. Rxg4# {[%clk 0:01:54]} 1-0


[Site "https://www.chess.com"]

[Event "Titled Tuesday Blitz June 15 2021"]
[White "Manafov, Vugar"]
[Black "Paravyan, David"]
[WhiteFideId "13410814"]
[BlackFideId "4194985"]
[WhiteElo "2274"]
[BlackElo "2562"]
[Result "0-1"]
[Round "08"]
[TimeControl "180+1"]
[Date "2021.06.15"]
[WhiteClock "0:00:06"]
[BlackClock "0:00:04"]

1. Nf3 {[%clk 0:03:00]}  Nf6 {[%clk 0:02:59]} 2. g3 {[%clk 0:03:00]}  g6 {[%clk 0:03:00]} 3. b3 {[%clk 0:03:00]}  Bg7 {[%clk 0:03:01]} 4. Bb2 {[%clk 0:03:00]}  c5 {[%clk 0:02:59]} 5. Bg2 {[%clk 0:03:01]}  d5 {[%clk 0:02:59]} 6. c4 {[%clk 0:03:01]}  d4 {[%clk 0:02:58]} 7. b4 {[%clk 0:03:01]}  Nfd7 {[%clk 0:02:57]} 8. O-O {[%clk 0:03:00]}  e5 {[%clk 0:02:57]} 9. e3 {[%clk 0:02:59]}  O-O {[%clk 0:02:56]} 10. exd4 {[%clk 0:02:50]}  exd4 {[%clk 0:02:48]} 11. d3 {[%clk 0:02:49]}  Nc6 {[%clk 0:02:45]} 12. a3 {[%clk 0:02:46]}  Nde5 {[%clk 0:02:37]} 13. bxc5 {[%clk 0:02:27]}  Bg4 {[%clk 0:02:35]} 14. h3 {[%clk 0:02:14]}  Nxf3+ {[%clk 0:02:33]} 15. Bxf3 {[%clk 0:02:15]}  Bxh3 {[%clk 0:02:32]} 16. Re1 {[%clk 0:02:14]}  Ne5 {[%clk 0:02:18]} 17. Bd5 {[%clk 0:02:09]}  Bg4 {[%clk 0:01:59]} 18. f3 {[%clk 0:02:06]}  Bf5 {[%clk 0:01:59]} 19. Be4 {[%clk 0:01:59]}  Bxe4 {[%clk 0:01:42]} 20. Rxe4 {[%clk 0:02:00]}  f5 {[%clk 0:01:42]} 21. Re1 {[%clk 0:01:51]}  f4 {[%clk 0:01:28]} 22. g4 {[%clk 0:01:45]}  Qh4 {[%clk 0:01:23]} 23. Rxe5 {[%clk 0:01:27]}  Bxe5 {[%clk 0:01:22]} 24. Nd2 {[%clk 0:01:26]}  Qg3+ {[%clk 0:01:17]} 25. Kh1 {[%clk 0:01:07]}  h5 {[%clk 0:01:15]} 26. Qe1 {[%clk 0:00:52]}  hxg4 {[%clk 0:00:40]} 27. Qxe5 {[%clk 0:00:41]}  gxf3 {[%clk 0:00:36]} 28. Qd5+ {[%clk 0:00:34]}  Rf7 {[%clk 0:00:24]} 29. Nxf3 {[%clk 0:00:34]}  Qh3+ {[%clk 0:00:10]} 30. Kg1 {[%clk 0:00:34]}  Qg3+ {[%clk 0:00:10]} 31. Kf1 {[%clk 0:00:34]}  Qh3+ {[%clk 0:00:09]} 32. Kf2 {[%clk 0:00:34]}  Qg3+ {[%clk 0:00:08]} 33. Ke2 {[%clk 0:00:25]}  Qg2+ {[%clk 0:00:06]} 34. Kd1 {[%clk 0:00:21]}  Qxb2 {[%clk 0:00:06]} 35. Rc1 {[%clk 0:00:08]}  Qg2 {[%clk 0:00:06]} 36. Rc2 {[%clk 0:00:06]}  Qh1+ {[%clk 0:00:06]} 37. Kd2 {[%clk 0:00:06]}  Re8 {[%clk 0:00:05]} 38. Rb2 {[%clk 0:00:02]}  Qg2+ {[%clk 0:00:05]} 39. Kc1 {[%clk 0:00:03]}  Qh1+ {[%clk 0:00:04]} 40. Kc2 {[%clk 0:00:03]}  Re2+ {[%clk 0:00:03]} 41. Nd2 {[%clk 0:00:03]}  Qxd5 {[%clk 0:00:02]} 42. cxd5 {[%clk 0:00:04]}  f3 {[%clk 0:00:03]} 43. Kd1 {[%clk 0:00:04]}  Rxd2+ {[%clk 0:00:03]} 44. Rxd2 {[%clk 0:00:04]}  f2 {[%clk 0:00:04]} 45. Rxf2 {[%clk 0:00:05]}  Rxf2 {[%clk 0:00:03]} 46. c6 {[%clk 0:00:06]}  bxc6 {[%clk 0:00:03]} 47. Ke1 {[%clk 0:00:06]}  Rf6 {[%clk 0:00:04]} 0-1


[Site "https://www.chess.com"]

[Event "Titled Tuesday Blitz June 15 2021"]
[White "Martinez Alcantara, Jose Eduardo"]
[Black "Najdin, Danil"]
[WhiteFideId "3805662"]
[BlackFideId "4172426"]
[WhiteElo "2690"]
[BlackElo "2193"]
[Result "0-1"]
[Round "08"]
[TimeControl "180+1"]
[Date "2021.06.15"]
[WhiteClock "0:00:02"]
[BlackClock "0:00:15"]

1. e4 {[%clk 0:03:00]}  e5 {[%clk 0:02:59]} 2. Nf3 {[%clk 0:03:01]}  Nc6 {[%clk 0:03:00]} 3. Bb5 {[%clk 0:03:01]}  a6 {[%clk 0:03:00]} 4. Ba4 {[%clk 0:03:02]}  Nf6 {[%clk 0:02:59]} 5. d3 {[%clk 0:03:02]}  b5 {[%clk 0:03:00]} 6. Bb3 {[%clk 0:03:02]}  Bc5 {[%clk 0:03:01]} 7. c3 {[%clk 0:03:03]}  d6 {[%clk 0:03:02]} 8. Qe2 {[%clk 0:03:03]}  h6 {[%clk 0:02:59]} 9. h3 {[%clk 0:03:03]}  Bd7 {[%clk 0:02:49]} 10. Nbd2 {[%clk 0:03:02]}  Bb6 {[%clk 0:02:49]} 11. Nf1 {[%clk 0:03:03]}  Ne7 {[%clk 0:02:36]} 12. g4 {[%clk 0:02:58]}  g5 {[%clk 0:02:33]} 13. h4 {[%clk 0:02:45]}  Nxg4 {[%clk 0:02:09]} 14. d4 {[%clk 0:02:45]}  Ng6 {[%clk 0:01:52]} 15. hxg5 {[%clk 0:02:42]}  exd4 {[%clk 0:01:46]} 16. cxd4 {[%clk 0:02:32]}  h5 {[%clk 0:01:25]} 17. Ng3 {[%clk 0:02:28]}  Qe7 {[%clk 0:01:08]} 18. a4 {[%clk 0:02:02]}  O-O-O {[%clk 0:01:07]} 19. axb5 {[%clk 0:01:40]}  Bxb5 {[%clk 0:01:06]} 20. Bc4 {[%clk 0:01:40]}  h4 {[%clk 0:00:51]} 21. Nf5 {[%clk 0:00:55]}  Qd7 {[%clk 0:00:50]} 22. Bxb5 {[%clk 0:00:27]}  axb5 {[%clk 0:00:50]} 23. Rg1 {[%clk 0:00:19]}  h3 {[%clk 0:00:44]} 24. Rxg4 {[%clk 0:00:19]}  h2 {[%clk 0:00:45]} 25. Nxh2 {[%clk 0:00:19]}  Rxh2 {[%clk 0:00:44]} 26. Ra8+ {[%clk 0:00:14]}  Kb7 {[%clk 0:00:44]} 27. Rxd8 {[%clk 0:00:15]}  Qxd8 {[%clk 0:00:45]} 28. Be3 {[%clk 0:00:14]}  Qa8 {[%clk 0:00:38]} 29. Qc2 {[%clk 0:00:03]}  Qa1+ {[%clk 0:00:34]} 30. Ke2 {[%clk 0:00:03]}  Rh1 {[%clk 0:00:32]} 31. Ng3 {[%clk 0:00:03]}  Qe1+ {[%clk 0:00:25]} 32. Kd3 {[%clk 0:00:02]}  c6 {[%clk 0:00:14]} 33. Nxh1 {[%clk 0:00:02]}  c5 {[%clk 0:00:15]} 34. dxc5 {[%clk 0:00:02]}  Ne5+ {[%clk 0:00:15]} 0-1


[Site "https://www.chess.com"]

[Event "Titled Tuesday Blitz June 15 2021"]
[White "Michailov, Matias"]
[Black "Nguyen, Quoc Hy"]
[WhiteFideId "3001571"]
[BlackFideId "12410853"]
[WhiteElo "2231"]
[BlackElo "1975"]
[Result "1/2-1/2"]
[Round "08"]
[TimeControl "180+1"]
[Date "2021.06.15"]
[WhiteClock "0:02:04"]
[BlackClock "0:01:34"]

1. d4 {[%clk 0:03:00]}  d5 {[%clk 0:02:41]} 2. c4 {[%clk 0:02:59]}  c6 {[%clk 0:02:41]} 3. Nf3 {[%clk 0:02:58]}  e6 {[%clk 0:02:40]} 4. Qc2 {[%clk 0:02:59]}  f5 {[%clk 0:02:40]} 5. g3 {[%clk 0:02:59]}  Nf6 {[%clk 0:02:41]} 6. Bg2 {[%clk 0:02:59]}  Bd6 {[%clk 0:02:41]} 7. O-O {[%clk 0:02:59]}  O-O {[%clk 0:02:42]} 8. Bf4 {[%clk 0:02:59]}  Bxf4 {[%clk 0:02:40]} 9. gxf4 {[%clk 0:03:00]}  Bd7 {[%clk 0:02:40]} 10. Nc3 {[%clk 0:02:55]}  Be8 {[%clk 0:02:40]} 11. b4 {[%clk 0:02:54]}  Bh5 {[%clk 0:02:40]} 12. Ne5 {[%clk 0:02:52]}  Nbd7 {[%clk 0:02:38]} 13. b5 {[%clk 0:02:46]}  Nxe5 {[%clk 0:02:33]} 14. fxe5 {[%clk 0:02:45]}  Ne4 {[%clk 0:02:32]} 15. f3 {[%clk 0:02:29]}  Nxc3 {[%clk 0:02:00]} 16. Qxc3 {[%clk 0:02:30]}  f4 {[%clk 0:02:00]} 17. Rab1 {[%clk 0:02:22]}  Rf5 {[%clk 0:01:57]} 18. Kh1 {[%clk 0:02:21]}  Be8 {[%clk 0:01:53]} 19. Bh3 {[%clk 0:02:15]}  Rh5 {[%clk 0:01:48]} 20. Bxe6+ {[%clk 0:02:14]}  Kh8 {[%clk 0:01:48]} 21. Bg4 {[%clk 0:02:13]}  Rxh2+ {[%clk 0:01:32]} 22. Kxh2 {[%clk 0:02:10]}  Qh4+ {[%clk 0:01:32]} 23. Kg2 {[%clk 0:02:03]}  Qg3+ {[%clk 0:01:33]} 24. Kh1 {[%clk 0:02:03]}  Qh4+ {[%clk 0:01:33]} 25. Kg2 {[%clk 0:02:03]}  Qg3+ {[%clk 0:01:34]} 26. Kh1 {[%clk 0:02:04]}  Qh4+ {[%clk 0:01:34]} 27. Kg2 {[%clk 0:02:04]} 1/2-1/2


[Site "https://www.chess.com"]

[Event "Titled Tuesday Blitz June 15 2021"]
[White "Navalgund, Niranjan"]
[Black "Mezentsev, Ivan"]
[WhiteFideId "5030854"]
[BlackFideId "13706195"]
[WhiteElo "2290"]
[BlackElo "2295"]
[Result "0-1"]
[Round "08"]
[TimeControl "180+1"]
[Date "2021.06.15"]
[WhiteClock "0:01:13"]
[BlackClock "0:01:07"]

1. e4 {[%clk 0:03:00]}  d5 {[%clk 0:02:59]} 2. exd5 {[%clk 0:03:00]}  Nf6 {[%clk 0:02:58]} 3. Nc3 {[%clk 0:03:00]}  Nxd5 {[%clk 0:02:58]} 4. Bc4 {[%clk 0:03:00]}  Nb6 {[%clk 0:02:58]} 5. Bb3 {[%clk 0:02:59]}  c5 {[%clk 0:02:58]} 6. d3 {[%clk 0:02:58]}  Nc6 {[%clk 0:02:58]} 7. Nf3 {[%clk 0:02:57]}  Bf5 {[%clk 0:02:58]} 8. Bg5 {[%clk 0:02:52]}  h6 {[%clk 0:02:52]} 9. Bh4 {[%clk 0:02:50]}  g5 {[%clk 0:02:36]} 10. Bg3 {[%clk 0:02:48]}  Bg7 {[%clk 0:02:36]} 11. Qd2 {[%clk 0:02:39]}  O-O {[%clk 0:02:31]} 12. O-O {[%clk 0:02:27]}  Rc8 {[%clk 0:02:26]} 13. Rad1 {[%clk 0:02:22]}  Bg4 {[%clk 0:02:23]} 14. h4 {[%clk 0:02:13]}  Nd4 {[%clk 0:02:17]} 15. Qe3 {[%clk 0:02:07]}  e6 {[%clk 0:02:05]} 16. hxg5 {[%clk 0:02:05]}  hxg5 {[%clk 0:02:04]} 17. Nxg5 {[%clk 0:02:01]}  Bxd1 {[%clk 0:01:59]} 18. Nxd1 {[%clk 0:02:00]}  Nd5 {[%clk 0:01:49]} 19. Bxd5 {[%clk 0:01:56]}  exd5 {[%clk 0:01:48]} 20. f4 {[%clk 0:01:51]}  Re8 {[%clk 0:01:43]} 21. Qd2 {[%clk 0:01:51]}  Re2 {[%clk 0:01:37]} 22. Qc1 {[%clk 0:01:51]}  Qd7 {[%clk 0:01:22]} 23. c3 {[%clk 0:01:38]}  Qg4 {[%clk 0:01:20]} 24. Kh2 {[%clk 0:01:31]}  Rc6 {[%clk 0:01:13]} 25. cxd4 {[%clk 0:01:27]}  Rh6+ {[%clk 0:01:12]} 26. Kg1 {[%clk 0:01:24]}  Qxg3 {[%clk 0:01:10]} 27. Rf2 {[%clk 0:01:13]}  Re1+ {[%clk 0:01:08]} 28. Rf1 {[%clk 0:01:13]}  Bxd4+ {[%clk 0:01:07]} 0-1


[Site "https://www.chess.com"]

[Event "Titled Tuesday Blitz June 15 2021"]
[White "Nazaretyan, Tigran"]
[Black "DieHardCuban"]
[WhiteFideId "24162345"]
[WhiteElo "2247"]
[BlackElo "2419"]
[Result "1-0"]
[Round "08"]
[TimeControl "180+1"]
[Date "2021.06.15"]
[WhiteClock "0:00:19"]
[BlackClock "0:00:01"]

1. d4 {[%clk 0:03:00]}  d5 {[%clk 0:02:55]} 2. c4 {[%clk 0:03:00]}  e6 {[%clk 0:02:56]} 3. Nf3 {[%clk 0:03:00]}  c6 {[%clk 0:02:55]} 4. Nbd2 {[%clk 0:02:56]}  Nf6 {[%clk 0:02:38]} 5. b3 {[%clk 0:02:52]}  Nbd7 {[%clk 0:02:30]} 6. Bb2 {[%clk 0:02:52]}  Qa5 {[%clk 0:02:08]} 7. a3 {[%clk 0:02:37]}  dxc4 {[%clk 0:02:03]} 8. b4 {[%clk 0:02:33]}  Qh5 {[%clk 0:01:14]} 9. Nxc4 {[%clk 0:02:30]}  Nb6 {[%clk 0:01:14]} 10. Nce5 {[%clk 0:02:24]}  a5 {[%clk 0:01:13]} 11. b5 {[%clk 0:02:21]}  c5 {[%clk 0:01:03]} 12. Rc1 {[%clk 0:02:13]}  c4 {[%clk 0:00:48]} 13. e3 {[%clk 0:02:04]}  Bd7 {[%clk 0:00:48]} 14. Nxc4 {[%clk 0:01:54]}  Nxc4 {[%clk 0:00:42]} 15. Bxc4 {[%clk 0:01:54]}  Bxb5 {[%clk 0:00:31]} 16. Qb3 {[%clk 0:01:52]}  Bxc4 {[%clk 0:00:29]} 17. Rxc4 {[%clk 0:01:52]}  b5 {[%clk 0:00:22]} 18. Ne5 {[%clk 0:01:31]}  Rb8 {[%clk 0:00:05]} 19. Rc6 {[%clk 0:00:50]}  Be7 {[%clk 0:00:04]} 20. Rc7 {[%clk 0:00:41]}  Bd6 {[%clk 0:00:04]} 21. Ra7 {[%clk 0:00:37]}  O-O {[%clk 0:00:03]} 22. Rxa5 {[%clk 0:00:36]}  Bxe5 {[%clk 0:00:03]} 23. dxe5 {[%clk 0:00:36]}  Ne4 {[%clk 0:00:04]} 24. Rxb5 {[%clk 0:00:30]}  Rxb5 {[%clk 0:00:02]} 25. Qxb5 {[%clk 0:00:31]}  Qg6 {[%clk 0:00:02]} 26. O-O {[%clk 0:00:29]}  Nd2 {[%clk 0:00:02]} 27. Rc1 {[%clk 0:00:25]}  Nf3+ {[%clk 0:00:01]} 28. Kh1 {[%clk 0:00:24]}  Qg4 {[%clk 0:00:01]} 29. h3 {[%clk 0:00:22]}  Qh5 {[%clk 0:00:01]} 30. Qe2 {[%clk 0:00:20]}  Qh4 {[%clk 0:00:01]} 31. Qxf3 {[%clk 0:00:20]}  Rb8 {[%clk 0:00:01]} 32. Bd4 {[%clk 0:00:20]}  Qh5 {[%clk 0:00:01]} 33. Qxh5 {[%clk 0:00:19]} 1-0


[Site "https://www.chess.com"]